lending/lending_fUSD_20240112
["ID","MTS","AMOUNT","RATE_DAILY","PERIOD"]
[311361261,1705067521822,-628.12,0.000256,2]
[311361262,1705067521832,-299.48,0.000256,2]
[311361263,1705067521841,-578.39,0.000256,2]
[311361264,1705067521850,-865.61,0.000256,2]
[311361265,1705067521860,-500.0,0.000256,2]
[311361266,1705067521870,-504.98,0.000256,2]
[311361267,1705067521880,-785.43,0.000256,2]
[311361268,1705067521890,-500.0,0.000256,2]
[311361269,1705067521899,-500.0,0.000256,2]
[311361270,1705067521909,-500.0,0.000256,2]
[311361271,1705067521919,-500.0,0.000256,2]
[311361272,1705067521928,-802.88,0.000256,2]
[311361273,1705067521938,-592.6,0.000256,2]
[311361274,1705067521948,-1046.21,0.000256,2]
[311361275,1705067521958,-1019.63,0.000256,2]
[311361276,1705067521968,-501.58,0.000256,2]
[311361277,1705067521977,-500.0,0.000256,2]
[311361278,1705067521988,-1762.58,0.000256,2]
[311361279,1705067521997,-500.0,0.000256,2]
[311361280,1705067522219,-742.28,0.000256,2]
[311361281,1705067522239,-425.52682622,0.000256,2]
[311361282,1705067522249,-500.0,0.000256,2]
[311361283,1705067522260,-551.57,0.000256,2]
[311361284,1705067522271,-544.63,0.000256,2]
[311361285,1705067522282,-500.0,0.000256,2]
[311361286,1705067522293,-500.0,0.000256,2]
[311361287,1705067522304,-511.99,0.000256,2]
[311361288,1705067522314,-500.0,0.000256,2]
[311361289,1705067522327,-500.0,0.000256,2]
[311361290,1705067522337,-566.0,0.000256,2]
[311361291,1705067522348,-513.65,0.000256,2]
[311361292,1705067522358,-500.0,0.000256,2]
[311361293,1705067522369,-500.0,0.000256,2]
[311361294,1705067522379,-500.0,0.000256,2]
[311361295,1705067522390,-500.0,0.000256,2]
[311361296,1705067522401,-522.55,0.000256,2]
[311361297,1705067522411,-683.51,0.000256,2]
[311361298,1705067522421,-500.0,0.000256,2]
[311361299,1705067522432,-924.0,0.000256,2]
[311361300,1705067522442,-500.0,0.000256,2]
[311361301,1705067522452,-500.0,0.000256,2]
[311361302,1705067522463,-677.56,0.000256,2]
[311361303,1705067522473,-500.0,0.000256,2]
[311361304,1705067522483,-500.0,0.000256,2]
[311361305,1705067522494,-500.0,0.000256,2]
[311361306,1705067522505,-500.0,0.000256,2]
[311361307,1705067522516,-612.68,0.000256,2]
[311361308,1705067522526,-500.0,0.000256,2]
[311361309,1705067522537,-590.15,0.000256,2]
[311361310,1705067522547,-505.02,0.000256,2]
[311361311,1705067522558,-500.0,0.000256,2]
[311361312,1705067522575,-548.99,0.000256,2]
[311361313,1705067522585,-500.0,0.000256,2]
[311361314,1705067522596,-543.6,0.000256,2]
[311361315,1705067522606,-632.89,0.000256,2]
[311361316,1705067522616,-500.0,0.000256,2]
[311361317,1705067522626,-1092.03,0.000256,2]
[311361318,1705067522636,-710.83,0.000256,2]
[311361319,1705067522646,-545.64,0.000256,2]
[311361320,1705067522656,-500.0,0.000256,2]
[311361321,1705067522665,-533.57,0.000256,2]
[311361322,1705067522676,-547.06,0.000256,2]
[311361323,1705067522685,-1007.67,0.000256,2]
[311361324,1705067522695,-1191.64,0.000256,2]
[311361325,1705067522705,-500.0,0.000256,2]
[311361326,1705067522716,-653.87,0.000256,2]
[311361327,1705067522726,-500.0,0.000256,2]
[311361328,1705067522736,-567.05,0.000256,2]
[311361329,1705067522747,-616.57,0.000256,2]
[311361330,1705067522758,-920.08,0.000256,2]
[311361331,1705067522769,-500.0,0.000256,2]
[311361332,1705067522779,-500.0,0.000256,2]
[311361333,1705067522789,-792.43,0.000256,2]
[311361334,1705067522800,-717.68,0.000256,2]
[311361335,1705067522810,-615.74,0.000256,2]
[311361336,1705067522824,-549.71,0.000256,2]
[311361337,1705067522834,-500.0,0.000256,2]
[311361338,1705067522844,-533.96,0.000256,2]
[311361339,1705067522854,-545.26,0.000256,2]
[311361340,1705067522864,-644.32,0.000256,2]
[311361341,1705067522874,-526.4,0.000256,2]
[311361342,1705067522884,-753.76,0.000256,2]
[311361343,1705067522894,-500.0,0.000256,2]
[311361344,1705067522904,-500.0,0.000256,2]
[311361345,1705067522914,-568.06,0.000256,2]
[311361346,1705067522924,-500.0,0.000256,2]
[311361347,1705067522933,-500.0,0.000256,2]
[311361348,1705067522943,-806.29,0.000256,2]
[311361349,1705067522953,-500.0,0.000256,2]
[311361350,1705067522963,-500.0,0.000256,2]
[311361351,1705067522973,-500.0,0.000256,2]
[311361352,1705067522983,-500.0,0.000256,2]
[311361353,1705067522994,-222.21,0.000256,2]
[311361354,1705067523003,-848.08,0.000256,2]
[311361355,1705067523013,-977.29,0.000256,2]
[311361356,1705067523023,-500.0,0.000256,2]
[311361357,1705067523033,-500.0,0.000256,2]
[311361358,1705067523043,-516.56,0.000256,2]
[311361359,1705067523054,-493.52,0.000256,2]
[311361360,1705067523064,-764.31,0.000256,2]
[311361361,1705067523080,-555.48,0.000256,2]
[311361362,1705067523090,-675.05,0.000256,2]
[311361363,1705067523101,-500.0,0.000256,2]
[311361364,1705067523111,-500.0,0.000256,2]
[311361365,1705067523121,-500.0,0.000256,2]
[311361366,1705067523131,-696.67,0.000256,2]
[311361367,1705067523141,-549.27,0.000256,2]
[311361368,1705067523151,-537.5,0.000256,2]
[311361369,1705067523161,-794.27,0.000256,2]
[311361370,1705067523173,-1478.94,0.000256,2]
[311361371,1705067523182,-2259.65,0.000256,2]
[311361372,1705067523195,-592.72,0.000256,2]
[311361373,1705067523205,-500.0,0.000256,2]
[311361374,1705067523217,-299.52,0.000256,2]
[311361375,1705067523227,-508.59,0.000256,2]
[311361376,1705067523238,-1082.32,0.000256,2]
[311361377,1705067523249,-5818.98,0.000256,2]
[311361378,1705067523259,-613.36,0.000256,2]
[311361379,1705067523269,-500.0,0.000256,2]
[311361380,1705067523279,-500.0,0.000256,2]
[311361381,1705067523289,-500.0,0.000256,2]
[311361382,1705067523298,-500.0,0.000256,2]
[311361383,1705067523308,-560.75,0.000256,2]
[311361384,1705067523320,-501.17,0.000256,2]
[311361385,1705067523330,-500.0,0.000256,2]
[311361386,1705067523340,-941.07,0.000256,2]
[311361387,1705067523351,-568.7,0.000256,2]
[311361388,1705067523361,-500.0,0.000256,2]
[311361389,1705067523372,-610.82,0.000256,2]
[311361390,1705067523383,-500.0,0.000256,2]
[311361391,1705067523393,-2025.81,0.000256,2]
[311361392,1705067523403,-627.28,0.000256,2]
[311361393,1705067523412,-793.23,0.000256,2]
[311361394,1705067523422,-500.0,0.000256,2]
[311361395,1705067523431,-500.0,0.000256,2]
[311361396,1705067523441,-500.0,0.000256,2]
[311361397,1705067523450,-1268.72,0.000256,2]
[311361398,1705067523459,-500.0,0.000256,2]
[311361399,1705067523469,-3058.91,0.000256,2]
[311361400,1705067523478,-500.0,0.000256,2]
[311361401,1705067523488,-645.36,0.000256,2]
[311361402,1705067523497,-500.0,0.000256,2]
[311361403,1705067523506,-594.49,0.000256,2]
[311361404,1705067523516,-337.35,0.000256,2]
[311361405,1705067523525,-500.0,0.000256,2]
[311361406,1705067523535,-523.76,0.000256,2]
[311361407,1705067523545,-967.54,0.000256,2]
[311361408,1705067523555,-500.0,0.000256,2]
[311361409,1705067523569,-698.09,0.000256,2]
[311361410,1705067523578,-1774.52,0.000256,2]
[311361411,1705067523588,-500.0,0.000256,2]
[311361412,1705067523598,-500.0,0.000256,2]
[311361413,1705067523608,-672.72,0.000256,2]
[311361414,1705067523617,-1366.67,0.000256,2]
[311361415,1705067523627,-640.24,0.000256,2]
[311361416,1705067523637,-650.29,0.000256,2]
[311361417,1705067523648,-1109.5,0.000256,2]
[311361418,1705067523657,-653.12,0.000256,2]
[311361419,1705067523667,-2402.79,0.000256,2]
[311361420,1705067523677,-500.0,0.000256,2]
[311361421,1705067523686,-682.08,0.000256,2]
[311361422,1705067523697,-2173.55,0.000256,2]
[311361423,1705067523706,-604.31,0.000256,2]
[311361424,1705067523715,-1581.39,0.000256,2]
[311361425,1705067523725,-500.0,0.000256,2]
[311361426,1705067523735,-1124.99,0.000256,2]
[311361427,1705067523745,-500.0,0.000256,2]
[311361428,1705067523754,-500.0,0.000256,2]
[311361429,1705067523764,-619.21,0.000256,2]
[311361430,1705067523774,-471.25,0.000256,2]
[311361431,1705067523783,-1172.6,0.000256,2]
[311361432,1705067523793,-843.5,0.000256,2]
[311361433,1705067523803,-752.62,0.000256,2]
[311361434,1705067523813,-500.0,0.000256,2]
[311361435,1705067523826,-613.44,0.000256,2]
[311361436,1705067523836,-1338.76,0.000256,2]
[311361437,1705067523845,-570.42,0.000256,2]
[311361438,1705067523855,-506.47,0.000256,2]
[311361439,1705067523865,-2558.46,0.000256,2]
[311361440,1705067523875,-500.0,0.000256,2]
[311361441,1705067523884,-778.89,0.000256,2]
[311361442,1705067523894,-500.0,0.000256,2]
[311361443,1705067523904,-608.12,0.000256,2]
[311361444,1705067523913,-761.66,0.000256,2]
[311361445,1705067523924,-500.0,0.000256,2]
[311361446,1705067523933,-500.0,0.000256,2]
[311361447,1705067523943,-606.09,0.000256,2]
[311361448,1705067523954,-2321.31,0.000256,2]
[311361449,1705067523964,-503.85,0.000256,2]
[311361450,1705067523974,-792.73,0.000256,2]
[311361451,1705067523984,-505.57,0.000256,2]
[311361452,1705067523994,-500.0,0.000256,2]
[311361453,1705067524003,-500.0,0.000256,2]
[311361454,1705067524012,-1855.62,0.000256,2]
[311361455,1705067524022,-986.73,0.000256,2]
[311361456,1705067524032,-500.0,0.000256,2]
[311361457,1705067524042,-544.3,0.000256,2]
[311361458,1705067524051,-500.0,0.000256,2]
[311361459,1705067524061,-922.23,0.000256,2]
[311361460,1705067524073,-855.09,0.000256,2]
[311361461,1705067524083,-1739.46,0.000256,2]
[311361462,1705067524093,-539.44,0.000256,2]
[311361463,1705067524104,-500.0,0.000256,2]
[311361464,1705067524114,-628.22,0.000256,2]
[311361465,1705067524124,-564.76,0.000256,2]
[311361466,1705067524134,-500.0,0.000256,2]
[311361467,1705067524145,-500.0,0.000256,2]
[311361468,1705067524157,-500.0,0.000256,2]
[311361469,1705067524169,-5795.35,0.000256,2]
[311361470,1705067524181,-500.0,0.000256,2]
[311361471,1705067524191,-500.0,0.000256,2]
[311361472,1705067524202,-518.54,0.000256,2]
[311361473,1705067524212,-577.35,0.000256,2]
[311361474,1705067524222,-188.68,0.00025601,2]
[311361475,1705067524233,-506.82,0.00025601,2]
[311361476,1705067524243,-898.46,0.00025601,2]
[311361477,1705067524254,-689.65,0.00025601,2]
[311361478,1705067524264,-689.5,0.00025601,2]
[311361479,1705067524275,-544.38,0.00025601,2]
[311361480,1705067524285,-517.93,0.00025601,2]
[311361481,1705067524295,-500.0,0.00025601,2]
[311361482,1705067524305,-603.88,0.00025601,2]
[311361483,1705067524320,-196.5,0.00025601,2]
[311361484,1705067524330,-807.14,0.00025601,2]
[311361485,1705067524339,-500.0,0.00025601,2]
[311361486,1705067524349,-763.57,0.00025601,2]
[311361487,1705067524359,-500.0,0.00025601,2]
[311361488,1705067524368,-222.19,0.00025601,2]
[311361489,1705067524378,-881.83,0.00025601,2]
[311361490,1705067524388,-500.0,0.00025601,2]
[311361491,1705067524399,-547.66,0.00025601,2]
[311361492,1705067524409,-717.02,0.00025601,2]
[311361493,1705067524420,-500.0,0.00025601,2]
[311361494,1705067524430,-500.0,0.00025601,2]
[311361495,1705067524439,-588.39,0.00025601,2]
[311361496,1705067524448,-500.0,0.00025603,2]
[311361497,1705067524457,-500.0,0.00025603,2]
[311361498,1705067524468,-282.33849611,0.00025851,11]
[311361499,1705067524478,-500.0,0.00025873,2]
[311361500,1705067524488,-500.0,0.00025873,2]
[311361501,1705067524499,-500.0,0.00025873,2]
[311361502,1705067524509,-500.0,0.00025873,2]
[311361503,1705067524519,-500.0,0.00025873,2]
[311361504,1705067524529,-354.64,0.00025873,2]
[311361505,1705067524539,-500.0,0.00025873,2]
[311361506,1705067524549,-265.04,0.00025873,2]
[311361507,1705067524561,-505.4,0.00025873,2]
[311361508,1705067524577,-1250.65,0.00025873,2]
[311361509,1705067524588,-500.0,0.00025873,2]
[311361510,1705067524599,-500.0,0.00025873,2]
[311361511,1705067524610,-7981.48,0.00025873,2]
[311361512,1705067524620,-535.31,0.00025873,2]
[311361513,1705067524631,-1261.36,0.00025873,2]
[311361514,1705067524642,-8984.16,0.00025873,2]
[311361515,1705067524652,-1671.94,0.00025873,2]
[311361516,1705067524662,-3195.18,0.00025873,2]
[311361517,1705067524673,-12299.66,0.00025873,2]
[311361518,1705067524683,-1110.57,0.00025873,2]
[311361519,1705067524694,-630.64,0.00025873,2]
[311361520,1705067524704,-3123.71,0.00025873,2]
[311361521,1705067524714,-500.0,0.00025873,2]
[311361522,1705067524724,-882.43,0.00025873,2]
[311361523,1705067524734,-2779.34,0.00025873,2]
[311361524,1705067524744,-500.0,0.00025873,2]
[311361525,1705067524756,-941.84,0.00025873,2]
[311361526,1705067524766,-703.36,0.00025873,2]
[311361527,1705067524776,-580.21,0.00025873,2]
[311361528,1705067524786,-22278.0,0.00025873,2]
[311361529,1705067524881,-2896.08,0.00025873,2]
[311361530,1705067524891,-1033.16,0.00025873,2]
[311361531,1705067524902,-2697.74,0.00025873,2]
[311361532,1705067524911,-500.0,0.00025873,2]
[311361533,1705067524922,-1239.07,0.00025873,2]
[311361534,1705067524933,-1299.72,0.00025873,2]
[311361535,1705067524944,-994.29,0.00025873,2]
[311361536,1705067524953,-500.0,0.00025873,2]
[311361537,1705067524963,-508.66,0.00025873,2]
[311361538,1705067524974,-428.4,0.00025873,2]
[311361539,1705067524984,-6520.81,0.00025873,2]
[311361540,1705067524993,-1237.49,0.00025873,2]
[311361541,1705067525003,-720.97,0.00025873,2]
[311361542,1705067525014,-4021.3,0.00025873,2]
[311361543,1705067525025,-500.0,0.00025873,2]
[311361544,1705067525034,-1358.89,0.00025873,2]
[311361545,1705067525044,-2605.83,0.00025873,2]
[311361546,1705067525055,-556.6,0.00025873,2]
[311361547,1705067525069,-500.0,0.00025873,2]
[311361548,1705067525080,-500.0,0.00025873,2]
[311361549,1705067525090,-519.89,0.00025873,2]
[311361550,1705067525101,-1356.18,0.00025873,2]
[311361551,1705067525111,-2784.68,0.00025873,2]
[311361552,1705067525121,-709.85,0.00025873,2]
[311361553,1705067525132,-500.0,0.00025873,2]
[311361554,1705067525142,-974.42,0.00025873,2]
[311361555,1705067525153,-2294.01,0.00025873,2]
[311361556,1705067525164,-372.92,0.00025873,2]
[311361557,1705067525177,-1586.88,0.00025873,2]
[311361558,1705067525188,-1607.34,0.00025873,2]
[311361559,1705067525198,-500.0,0.00025873,2]
[311361560,1705067525208,-892.72,0.00025873,2]
[311361561,1705067525219,-1286.7,0.00025873,2]
[311361562,1705067525229,-500.0,0.00025873,2]
[311361563,1705067525239,-563.27,0.00025873,2]
[311361564,1705067525249,-430.2,0.00025873,2]
[311361565,1705067525259,-834.9,0.00025873,2]
[311361566,1705067525269,-1002.65,0.00025873,2]
[311361567,1705067525281,-415.28,0.00025873,2]
[311361568,1705067525293,-500.0,0.00025873,2]
[311361569,1705067525304,-13676.69,0.00025873,2]
[311361570,1705067525316,-1317.28,0.00025873,2]
[311361571,1705067525327,-500.0,0.00025873,2]
[311361572,1705067525337,-500.0,0.00025873,2]
[311361573,1705067525349,-1642.76,0.00025873,2]
[311361574,1705067525361,-601.82,0.00025873,2]
[311361575,1705067525372,-500.0,0.00025873,2]
[311361576,1705067525383,-5698.97,0.00025873,2]
[311361577,1705067525394,-1051.05,0.00025873,2]
[311361578,1705067525405,-852.82,0.00025873,2]
[311361579,1705067525416,-577.98,0.00025873,2]
[311361580,1705067525427,-697.59,0.00025873,2]
[311361581,1705067525438,-1233.03,0.00025873,2]
[311361582,1705067525450,-2538.76,0.00025873,2]
[311361583,1705067525461,-1405.14,0.00025873,2]
[311361584,1705067525472,-673.52,0.00025873,2]
[311361585,1705067525486,-2213.37,0.00025873,2]
[311361586,1705067525497,-500.0,0.00025873,2]
[311361587,1705067525509,-276.72,0.00025873,2]
[311361588,1705067525525,-14904.63,0.00025873,2]
[311361589,1705067525534,-1129.13,0.00025873,2]
[311361590,1705067525545,-1026.68,0.00025873,2]
[311361591,1705067525556,-3836.53,0.00025873,2]
[311361592,1705067525578,-848.03,0.00025873,2]
[311361593,1705067525593,-717.68,0.00025873,2]
[311361594,1705067525610,-1579.12,0.00025873,2]
[311361595,1705067525621,-500.0,0.00025873,2]
[311361596,1705067525630,-1016.89,0.00025873,2]
[311361597,1705067525640,-1273.06,0.00025873,2]
[311361598,1705067525650,-1990.06,0.00025873,2]
[311361599,1705067525661,-642.71,0.00025873,2]
[311361600,1705067525671,-1962.61,0.00025873,2]
[311361601,1705067525681,-3858.89,0.00025873,2]
[311361602,1705067525691,-1731.39,0.00025873,2]
[311361603,1705067525702,-830.92,0.00025873,2]
[311361604,1705067525712,-1448.83,0.00025873,2]
[311361605,1705067525723,-899.04,0.00025873,2]
[311361606,1705067525734,-673.69,0.00025873,2]
[311361607,1705067525749,-699.58,0.00025873,2]
[311361608,1705067525759,-2683.93,0.00025873,2]
[311361609,1705067525770,-4923.06,0.00025873,2]
[311361610,1705067525781,-2940.73,0.00025873,2]
[311361611,1705067525792,-660.73,0.00025873,2]
[311361612,1705067525802,-1814.82,0.00025873,2]
[311361613,1705067525813,-1795.65,0.00025873,2]
[311361614,1705067525829,-500.0,0.00025873,2]
[311361615,1705067525840,-500.0,0.00025873,2]
[311361616,1705067525851,-371.05,0.00025873,2]
[311361617,1705067525861,-788.12,0.00025873,2]
[311361618,1705067525872,-2878.51,0.00025873,2]
[311361619,1705067525882,-1029.85,0.00025873,2]
[311361620,1705067525892,-354.88,0.00025874,2]
[311361621,1705067525902,-312.96,0.00025874,2]
[311361622,1705067525913,-173.52,0.00025874,2]
[311361623,1705067525924,-225.5036125,0.00025874,2]
[311361624,1705067525934,-625.04161078,0.00025874,2]
[311361625,1705067525945,-500.0,0.00025874,2]
[311361626,1705067525955,-500.0,0.00025874,2]
[311361627,1705067525966,-500.0,0.00025874,2]
[311361628,1705067525976,-513.85220111,0.00025874,2]
[311361629,1705067525987,-500.0,0.00025874,2]
[311361630,1705067525998,-500.0,0.00025874,2]
[311361631,1705067526007,-500.0,0.00025874,2]
[311361632,1705067526018,-193.52,0.00025874,2]
[311361633,1705067526028,-500.0,0.00025874,2]
[311361634,1705067526038,-500.0,0.00025874,2]
[311361635,1705067526048,-500.0,0.00025874,2]
[311361636,1705067526059,-532.55,0.00025874,2]
[311361637,1705067526072,-571.03,0.00025874,2]
[311361638,1705067526084,-294.23643329,0.00025874,2]
[311361639,1705067526094,-500.0,0.00025874,2]
[311361640,1705067526104,-500.0,0.00025874,2]
[311361641,1705067526115,-398.24,0.00025874,2]
[311361642,1705067526126,-500.0,0.00025874,2]
[311361643,1705067526136,-500.0,0.00025874,2]
[311361644,1705067526147,-617.06,0.00025874,2]
[311361645,1705067526158,-500.0,0.00025874,2]
[311361646,1705067526167,-500.03,0.00025874,2]
[311361647,1705067526178,-900.49,0.00025874,2]
[311361648,1705067526188,-390.08,0.00025874,2]
[311361649,1705067526199,-500.0,0.00025874,2]
[311361650,1705067526209,-500.0,0.00025874,2]
[311361651,1705067526220,-562.44,0.00025874,2]
[311361652,1705067526230,-580.22,0.00025874,2]
[311361653,1705067526241,-500.0,0.00025874,2]
[311361654,1705067526251,-500.0,0.00025874,2]
[311361655,1705067526261,-500.0,0.00025874,2]
[311361656,1705067526271,-500.0,0.00025874,2]
[311361657,1705067526282,-218.42,0.00025874,2]
[311361658,1705067526292,-500.0,0.00025874,2]
[311361659,1705067526302,-500.0,0.00025874,2]
[311361660,1705067526312,-500.0,0.00025874,2]
[311361661,1705067526325,-500.0,0.00025874,2]
[311361662,1705067526335,-988.76,0.00025874,2]
[311361663,1705067526346,-500.0,0.00025874,2]
[311361664,1705067526356,-500.0,0.00025874,2]
[311361665,1705067526367,-536.8,0.00025874,2]
[311361666,1705067526377,-500.0,0.00025874,2]
[311361667,1705067526387,-676.74,0.00025874,2]
[311361668,1705067526398,-594.36,0.00025874,2]
[311361669,1705067526409,-500.0,0.00025874,2]
[311361670,1705067526419,-500.0,0.00025874,2]
[311361671,1705067526430,-500.0,0.00025874,2]
[311361672,1705067526441,-572.67,0.00025874,2]
[311361673,1705067526452,-500.0,0.00025874,2]
[311361674,1705067526463,-543.4,0.00025874,2]
[311361675,1705067526474,-500.0,0.00025874,2]
[311361676,1705067526484,-500.0,0.00025874,2]
[311361677,1705067526495,-686.86,0.00025874,2]
[311361678,1705067526506,-500.0,0.00025874,2]
[311361679,1705067526516,-513.03,0.00025874,2]
[311361680,1705067526527,-500.0,0.00025874,2]
[311361681,1705067526537,-393.32,0.00025874,2]
[311361682,1705067526548,-717.1,0.00025874,2]
[311361683,1705067526558,-915.79,0.00025874,2]
[311361684,1705067526572,-628.12,0.00025874,2]
[311361685,1705067526582,-578.39,0.00025874,2]
[311361686,1705067526593,-865.61,0.00025874,2]
[311361687,1705067526603,-500.0,0.00025874,2]
[311361688,1705067526614,-504.98,0.00025874,2]
[311361689,1705067526624,-785.43,0.00025874,2]
[311361690,1705067526635,-500.0,0.00025874,2]
[311361691,1705067526645,-500.0,0.00025874,2]
[311361692,1705067526655,-500.0,0.00025874,2]
[311361693,1705067526666,-500.0,0.00025874,2]
[311361694,1705067526677,-802.88,0.00025874,2]
[311361695,1705067526687,-592.6,0.00025874,2]
[311361696,1705067526698,-1046.21,0.00025874,2]
[311361697,1705067526709,-1019.63,0.00025874,2]
[311361698,1705067526720,-501.58,0.00025874,2]
[311361699,1705067526731,-500.0,0.00025874,2]
[311361700,1705067526741,-1762.58,0.00025874,2]
[311361701,1705067526751,-500.0,0.00025874,2]
[311361702,1705067526762,-742.28,0.00025874,2]
[311361703,1705067526773,-500.0,0.00025874,2]
[311361704,1705067526783,-551.57,0.00025874,2]
[311361705,1705067526792,-544.63,0.00025874,2]
[311361706,1705067526803,-500.0,0.00025874,2]
[311361707,1705067526813,-500.0,0.00025874,2]
[311361708,1705067526825,-511.99,0.00025874,2]
[311361709,1705067526836,-500.0,0.00025874,2]
[311361710,1705067526845,-500.0,0.00025874,2]
[311361711,1705067526856,-513.65,0.00025874,2]
[311361712,1705067526866,-500.0,0.00025874,2]
[311361713,1705067526877,-500.0,0.00025874,2]
[311361714,1705067526888,-500.0,0.00025874,2]
[311361715,1705067526899,-500.0,0.00025874,2]
[311361716,1705067526909,-522.55,0.00025874,2]
[311361717,1705067526919,-683.51,0.00025874,2]
[311361718,1705067526929,-500.0,0.00025874,2]
[311361719,1705067526940,-924.0,0.00025874,2]
[311361720,1705067526950,-500.0,0.00025874,2]
[311361721,1705067526961,-500.0,0.00025874,2]
[311361722,1705067526971,-677.56,0.00025874,2]
[311361723,1705067526981,-500.0,0.00025874,2]
[311361724,1705067526991,-500.0,0.00025874,2]
[311361725,1705067527002,-500.0,0.00025874,2]
[311361726,1705067527012,-500.0,0.00025874,2]
[311361727,1705067527022,-612.68,0.00025874,2]
[311361728,1705067527033,-500.0,0.00025874,2]
[311361729,1705067527043,-590.15,0.00025874,2]
[311361730,1705067527054,-505.02,0.00025874,2]
[311361731,1705067527065,-500.0,0.00025874,2]
[311361732,1705067527075,-548.99,0.00025874,2]
[311361733,1705067527086,-500.0,0.00025874,2]
[311361734,1705067527096,-543.6,0.00025874,2]
[311361735,1705067527106,-632.89,0.00025874,2]
[311361736,1705067527116,-225.56,0.00025874,2]
[311361737,1705067527126,-1092.03,0.00025874,2]
[311361738,1705067527137,-710.83,0.00025874,2]
[311361739,1705067527148,-545.64,0.00025874,2]
[311361740,1705067527158,-500.0,0.00025874,2]
[311361741,1705067527169,-533.57,0.00025874,2]
[311361742,1705067527180,-547.06,0.00025874,2]
[311361743,1705067527190,-1007.67,0.00025874,2]
[311361744,1705067527203,-1191.64,0.00025874,2]
[311361745,1705067527214,-500.0,0.00025874,2]
[311361746,1705067527225,-653.87,0.00025874,2]
[311361747,1705067527235,-500.0,0.00025874,2]
[311361748,1705067527245,-567.05,0.00025874,2]
[311361749,1705067527255,-616.57,0.00025874,2]
[311361750,1705067527265,-920.08,0.00025874,2]
[311361751,1705067527275,-188.24,0.00025874,2]
[311361752,1705067527285,-500.0,0.00025874,2]
[311361753,1705067527296,-792.43,0.00025874,2]
[311361754,1705067527306,-717.68,0.00025874,2]
[311361755,1705067527318,-615.74,0.00025874,2]
[311361756,1705067527329,-549.71,0.00025874,2]
[311361757,1705067527340,-500.0,0.00025874,2]
[311361758,1705067527350,-533.96,0.00025874,2]
[311361759,1705067527359,-545.26,0.00025874,2]
[311361760,1705067527370,-526.4,0.00025874,2]